bitfinex/quotes_BTCUSD_20250813
["timestamp","ask_amount","ask_price","bid_price","bid_amount"]
[1755075601118,0.001,119810.0,119800.0,1.5838508]
[1755075602437,0.001,119810.0,119800.0,1.4574108]
[1755075602653,0.001,119810.0,119800.0,1.5838508]
[1755075603314,0.001,119810.0,119800.0,1.4574108]
[1755075603501,0.001,119810.0,119800.0,1.5838508]
[1755075605456,0.001,119810.0,119800.0,1.6877708]
[1755075605836,0.001,119810.0,119800.0,1.9915708]
[1755075606354,0.001,119810.0,119800.0,1.7612108]
[1755075606697,0.001,119810.0,119800.0,1.7837308]
[1755075607788,0.001,119810.0,119800.0,1.4574108]
[1755075607988,0.001,119810.0,119800.0,1.5838508]
[1755075610719,0.001,119810.0,119800.0,1.60552973]
[1755075611474,0.001,119810.0,119800.0,1.5838508]
[1755075612547,0.001,119810.0,119800.0,1.4574108]
[1755075612755,0.001,119810.0,119800.0,1.5838108]
[1755075614097,0.001,119810.0,119800.0,1.4574108]
[1755075614411,0.001,119810.0,119800.0,1.5838108]
[1755075615554,0.001,119810.0,119800.0,1.9915308]
[1755075618608,0.001,119810.0,119800.0,1.6572908]
[1755075618723,0.001,119810.0,119800.0,1.7836908]
[1755075619773,0.001,119810.0,119800.0,1.4574108]
[1755075620153,0.001,119810.0,119800.0,1.5838108]
[1755075620355,0.00056,119810.0,119800.0,1.4574108]
[1755075620742,0.00056,119810.0,119800.0,1.5838108]
[1755075621204,0.00056,119810.0,119800.0,1.5837708]
[1755075622941,0.00056,119810.0,119800.0,1.4574108]
[1755075623158,0.00056,119810.0,119800.0,1.5837708]
[1755075624255,0.00056,119810.0,119800.0,1.4574108]
[1755075624463,0.00056,119810.0,119800.0,1.5837708]
[1755075624889,0.00056,119810.0,119800.0,1.4574108]
[1755075625017,0.00056,119810.0,119800.0,1.5837708]
[1755075625597,0.00056,119810.0,119800.0,1.9914908]
[1755075625738,0.00056,119810.0,119800.0,1.7612108]
[1755075625962,0.00056,119810.0,119800.0,1.8875708]
[1755075626606,0.00056,119810.0,119800.0,1.7836508]
[1755075628695,0.00056,119810.0,119800.0,1.5837708]
[1755075632162,0.00056,119810.0,119800.0,1.4965108]
[1755075632292,0.00056,119810.0,119800.0,1.6228708]
[1755075632907,0.00056,119810.0,119800.0,1.64454973]
[1755075633258,0.000259,119810.0,119800.0,1.63954973]
[1755075633506,0.000259,119810.0,119800.0,1.51318973]
[1755075633710,0.000259,119810.0,119800.0,1.6148708]
[1755075633912,0.000259,119810.0,119800.0,1.4975108]
[1755075634122,0.000259,119810.0,119800.0,1.6238708]
[1755075634815,0.000259,119810.0,119800.0,1.6148708]
[1755075635036,0.000259,119810.0,119800.0,1.6248708]
[1755075635388,0.000259,119810.0,119800.0,1.64927022]
[1755075635589,0.000259,119810.0,119800.0,2.05695022]
[1755075635793,0.000259,119810.0,119800.0,1.94799022]
[1755075636183,0.000259,119810.0,119800.0,1.95399022]
[1755075637802,0.000259,119810.0,119800.0,1.85007022]
[1755075639838,0.000259,119810.0,119800.0,1.65023022]
[1755075642485,0.72384468,119870.0,119860.0,0.03136455]
[1755075642486,0.03,119870.0,119860.0,0.03136455]
[1755075642705,0.03208,119870.0,119860.0,0.7185578]
[1755075643032,0.03374,119870.0,119860.0,0.73948592]
[1755075643436,0.03374,119870.0,119860.0,0.63815492]
[1755075643715,0.03374,119870.0,119860.0,0.76447492]
[1755075643927,0.03374,119870.0,119860.0,1.10547492]
[1755075645626,0.03374,119870.0,119860.0,1.51315492]
[1755075645769,0.03374,119870.0,119860.0,1.53825426]
[1755075646640,0.03374,119870.0,119860.0,1.55271891]
[1755075647333,0.03374,119870.0,119860.0,1.44879891]
[1755075648530,0.03208,119870.0,119860.0,1.44879891]
[1755075651385,0.03208,119870.0,119860.0,1.34487891]
[1755075652102,0.03034,119870.0,119860.0,1.35018891]
[1755075652300,0.03034,119870.0,119860.0,1.34487891]
[1755075652963,0.03034,119870.0,119860.0,1.34809891]
[1755075653415,0.03034,119870.0,119860.0,1.14825891]
[1755075653772,0.03034,119870.0,119860.0,1.15034891]
[1755075655327,0.03034,119870.0,119860.0,1.14934891]
[1755075655485,0.03034,119870.0,119860.0,1.55890891]
[1755075655968,0.03034,119870.0,119860.0,1.55290891]
[1755075656396,0.03034,119870.0,119860.0,1.55990891]
[1755075656786,0.03034,119870.0,119860.0,1.55459891]
[1755075657138,0.03034,119870.0,119860.0,1.55781891]
[1755075657341,0.03034,119870.0,119860.0,1.55990891]
[1755075658133,0.03034,119870.0,119860.0,1.45602891]
[1755075658743,0.03,119870.0,119860.0,1.45602891]
[1755075659506,0.03199,119870.0,119860.0,1.45602891]
[1755075659711,0.03199,119870.0,119860.0,1.45393891]
[1755075659917,0.03199,119870.0,119860.0,1.45599891]
[1755075660130,0.03,119870.0,119860.0,1.15231891]
[1755075661526,0.03,119870.0,119860.0,1.15223891]
[1755075661774,0.03,119870.0,119860.0,3.29525091]
[1755075661980,0.03,119870.0,119860.0,3.42149091]
[1755075662385,0.02990281,119870.0,119860.0,3.42149091]
[1755075663475,0.02990281,119870.0,119860.0,3.50916091]
[1755075664984,0.02990281,119870.0,119860.0,1.56409291]
[1755075665216,0.03156281,119870.0,119860.0,1.36694791]
[1755075665571,0.03156281,119870.0,119860.0,1.77450791]
[1755075665766,0.02990281,119870.0,119860.0,1.54438791]
[1755075665971,0.02990281,119870.0,119860.0,1.67062791]
[1755075669252,0.02990281,119870.0,119860.0,1.44050791]
[1755075669458,0.02990281,119870.0,119860.0,1.56670791]
[1755075671011,0.02990281,119870.0,119860.0,1.54160857]
[1755075671430,0.02990281,119870.0,119860.0,1.34180857]
[1755075673623,0.02990281,119870.0,119860.0,1.25413857]
[1755075674234,0.02990281,119870.0,119860.0,1.29531857]
[1755075675534,0.02990281,119870.0,119860.0,1.62435777]
[1755075676931,0.02990281,119870.0,119860.0,1.52047777]
[1755075678163,0.02990281,119870.0,119860.0,1.32067777]
[1755075678369,0.02990281,119870.0,119860.0,1.19447777]
[1755075678570,0.02990281,119870.0,119860.0,1.32067777]
[1755075678994,0.02990281,119870.0,119860.0,1.27949777]
[1755075679199,0.02990281,119870.0,119860.0,1.15329777]
[1755075679403,0.02990281,119870.0,119860.0,1.27949777]
[1755075680340,0.74001903,119900.0,119890.0,0.03136455]
[1755075680541,0.74001903,119900.0,119890.0,0.7183478]
[1755075681118,0.13588792,119920.0,119910.0,0.03136455]
[1755075681358,0.90525345,119920.0,119910.0,0.63557455]
[1755075683102,0.90525345,119920.0,119910.0,0.50937455]
[1755075683545,0.90525345,119920.0,119910.0,0.51237455]
[1755075683695,0.90525345,119920.0,119910.0,0.63853455]
[1755075683897,0.90525345,119920.0,119910.0,0.51237455]
[1755075684139,0.93023845,119920.0,119910.0,0.63853455]
[1755075685599,0.93023845,119920.0,119910.0,0.94217455]
[1755075686482,0.93023845,119920.0,119910.0,0.71213455]
[1755075686687,0.93023845,119920.0,119910.0,0.51237455]
[1755075686865,0.90525345,119920.0,119910.0,0.63853455]
[1755075689728,0.90525345,119920.0,119910.0,0.51237455]
[1755075689931,0.90525345,119920.0,119910.0,0.63853455]
[1755075690656,0.13588792,119920.0,119910.0,0.63853455]
[1755075690803,1.52072038,119920.0,119910.0,0.63853455]
[1755075691794,1.52072038,119920.0,119910.0,0.51237455]
[1755075691950,1.52072038,119920.0,119910.0,0.63853455]
[1755075693846,1.52072038,119920.0,119910.0,0.51237455]
[1755075694072,1.52072038,119920.0,119910.0,0.63853455]
[1755075695660,1.52072038,119920.0,119910.0,0.94217455]
[1755075699052,1.52072038,119920.0,119910.0,0.83829455]
[1755075699713,0.13588792,119920.0,119910.0,0.83829455]
[1755075699936,1.52072038,119920.0,119910.0,0.83829455]
[1755075700142,1.52072038,119920.0,119910.0,0.86829455]
[1755075701981,0.82830415,119920.0,119910.0,0.86829455]
[1755075702720,0.82830415,119920.0,119910.0,0.87152455]
[1755075703065,0.82830415,119920.0,119910.0,0.67176455]
[1755075704439,1.52072038,119920.0,119910.0,0.67176455]
[1755075705755,1.52072038,119920.0,119910.0,1.07928455]
[1755075706419,1.52072038,119920.0,119910.0,0.84924455]
[1755075706639,1.52072038,119920.0,119910.0,0.86829455]
[1755075707754,1.52072038,119920.0,119910.0,0.66853455]
[1755075708391,1.52072038,119920.0,119910.0,0.54237455]
[1755075708607,1.52072038,119920.0,119910.0,0.66849455]
[1755075711207,1.52072038,119920.0,119910.0,0.54237455]
[1755075711412,1.52072038,119920.0,119910.0,0.66849455]
[1755075711607,1.52072038,119920.0,119910.0,0.67172455]
[1755075711938,0.82830415,119920.0,119910.0,0.67172455]
[1755075712883,1.52072038,119920.0,119910.0,0.67172455]
[1755075713221,1.52072038,119920.0,119910.0,0.66849455]
[1755075714934,0.13588792,119920.0,119910.0,0.66849455]
[1755075715212,1.52072038,119920.0,119910.0,0.67172455]
[1755075715594,1.52072038,119920.0,119910.0,0.97536455]
[1755075716310,1.52072038,119920.0,119910.0,0.84924455]
[1755075716533,1.52072038,119920.0,119910.0,0.97536455]
[1755075716767,1.52072038,119920.0,119910.0,0.97748455]
[1755075719103,0.82830415,119920.0,119910.0,0.67384455]
[1755075719587,1.52072038,119920.0,119910.0,0.67384455]
[1755075720660,1.52072038,119920.0,119910.0,0.67172455]
[1755075724274,1.52072038,119920.0,119910.0,0.54560455]
[1755075724503,1.52072038,119920.0,119910.0,0.67172455]
[1755075724787,1.52072038,119920.0,119910.0,0.54237455]
[1755075725017,1.52072038,119920.0,119910.0,0.52403123]
[1755075725018,2.29585986,119920.0,119910.0,0.52403123]
[1755075725232,2.32084886,119920.0,119910.0,0.65015123]
[1755075725705,2.32084886,119920.0,119910.0,0.95379123]
[1755075725922,2.32084886,119920.0,119910.0,0.82767123]
[1755075726169,2.32084886,119920.0,119910.0,0.95379123]
[1755075726392,2.32084886,119920.0,119910.0,0.62791123]
[1755075726636,2.32084886,119920.0,119910.0,0.72379123]
[1755075726881,2.16417119,119920.0,119910.0,0.72379123]
[1755075727127,2.16417119,119920.0,119910.0,0.84991123]
[1755075727784,2.16417119,119920.0,119910.0,0.64715123]
[1755075728235,2.16417119,119920.0,119910.0,0.64815123]
[1755075728453,2.16414782,119920.0,119910.0,0.64815123]
[1755075729120,2.16414782,119920.0,119910.0,0.52203123]
[1755075729337,2.16414782,119920.0,119910.0,0.64815123]
[1755075730117,2.16414782,119920.0,119910.0,0.52203123]
[1755075730344,2.16414782,119920.0,119910.0,0.64815123]
[1755075731249,2.16414782,119920.0,119910.0,0.52203123]
[1755075731463,2.16414782,119920.0,119910.0,0.64815123]
[1755075731890,2.16414782,119920.0,119910.0,0.52203123]
[1755075732099,2.16414782,119920.0,119910.0,0.64815123]
[1755075733766,2.16414782,119920.0,119910.0,0.64205161]
[1755075734186,2.16412355,119920.0,119910.0,0.63788886]
[1755075734388,2.16412355,119920.0,119910.0,0.49667624]
[1755075734594,2.16412355,119920.0,119910.0,0.61855351]
[1755075735263,2.16411946,119920.0,119910.0,0.61855351]
[1755075735469,2.16411946,119920.0,119910.0,0.49243351]
[1755075735691,2.16411901,119920.0,119910.0,0.92223351]
[1755075737141,2.16411901,119920.0,119910.0,0.81835351]
[1755075738200,2.16411625,119920.0,119910.0,0.81835351]
[1755075738408,2.16411625,119920.0,119910.0,0.49243351]
[1755075738753,2.16411625,119920.0,119910.0,0.61855351]
[1755075739313,2.16411625,119920.0,119910.0,0.49243351]
[1755075739525,2.16411625,119920.0,119910.0,0.61855351]
[1755075741395,2.1641152,119920.0,119910.0,0.61855351]
[1755075742948,2.1641152,119920.0,119910.0,0.49243351]
[1755075743240,2.1641152,119920.0,119910.0,0.61855351]
[1755075744220,2.14857403,119920.0,119910.0,0.61855351]
[1755075744438,2.16411899,119920.0,119910.0,20.61855351]
[1755075745730,2.16411899,119920.0,119910.0,20.92227351]
[1755075746925,2.27411899,119920.0,119910.0,20.92227351]
[1755075747728,2.27411899,119920.0,119910.0,20.69227351]
[1755075747933,2.27411899,119920.0,119910.0,20.81839351]
[1755075748147,2.27411899,119920.0,119910.0,20.69227351]
[1755075748370,2.27411899,119920.0,119910.0,20.82163351]
[1755075748508,2.27411899,119920.0,119910.0,20.49567351]
[1755075748715,2.27411899,119920.0,119910.0,20.62179351]
[1755075750166,2.27411899,119920.0,119910.0,20.49567351]
[1755075750353,2.27411899,119920.0,119910.0,20.62179351]
[1755075753493,2.25857403,119920.0,119910.0,20.62179351]
[1755075753696,2.27415465,119920.0,119910.0,20.62179351]
[1755075754715,2.81271633,119920.0,119910.0,20.62179351]
[1755075755530,2.81271633,119920.0,119910.0,20.72571351]
[1755075755817,2.81271633,119920.0,119910.0,20.92555351]
[1755075757756,2.81271633,119920.0,119910.0,20.69551351]
[1755075758262,2.81271633,119920.0,119910.0,20.62179351]
[1755075758441,2.81271633,119920.0,119910.0,20.49567351]
[1755075758644,2.81271633,119920.0,119910.0,20.62179351]
[1755075759361,2.81271633,119920.0,119910.0,20.49567351]
[1755075759575,2.81271633,119920.0,119910.0,20.62179351]
[1755075763029,2.81274014,119920.0,119910.0,20.62179351]
[1755075765570,2.81274014,119920.0,119910.0,20.92551351]
[1755075766199,2.81274056,119920.0,119910.0,20.92551351]
[1755075767233,2.81274056,119920.0,119910.0,20.79939351]
[1755075767435,2.81274056,119920.0,119910.0,20.92551351]
[1755075769275,2.81274186,119920.0,119910.0,20.92551351]
[1755075771300,2.81274186,119920.0,119910.0,20.82163351]
[1755075772020,2.81274186,119920.0,119910.0,20.82045581]
[1755075772255,2.79713571,119920.0,119910.0,20.62061581]
[1755075772466,2.81274234,119920.0,119910.0,20.62061581]
[1755075772693,2.81137268,119920.0,119910.0,20.62061581]
[1755075772927,3.02137268,119920.0,119910.0,20.62061581]
[1755075773366,3.02137268,119920.0,119910.0,20.49449581]
[1755075773569,3.02137268,119920.0,119910.0,20.62061581]
[1755075774058,3.02137268,119920.0,119910.0,20.61918143]
[1755075774885,3.02000342,119920.0,119910.0,20.61918143]
[1755075775399,3.00439679,119920.0,119910.0,20.61918143]
[1755075775616,3.02000404,119920.0,119910.0,20.92290143]
[1755075778373,3.06999404,119920.0,119910.0,20.92290143]
[1755075778584,3.02000404,119920.0,119910.0,20.92290143]
[1755075779270,3.02000404,119920.0,119910.0,20.81902143]
[1755075779443,3.13439679,119920.0,119910.0,20.81902143]
[1755075779651,3.15000472,119920.0,119910.0,20.81902143]
[1755075780998,3.13439679,119920.0,119910.0,20.81902143]
[1755075781351,3.15000475,119920.0,119910.0,20.81902143]
[1755075782533,3.15000475,119920.0,119910.0,20.49306143]
[1755075782763,3.15000475,119920.0,119910.0,20.61914143]
[1755075784813,3.15000475,119920.0,119910.0,20.49306143]
[1755075785027,3.15000475,119920.0,119910.0,20.61914143]
[1755075785666,3.15000475,119920.0,119910.0,20.92290143]
[1755075787690,3.15000475,119920.0,119910.0,20.25118123]
[1755075787897,5.38597029,119920.0,119910.0,19.95630589]
[1755075788161,5.38597029,119920.0,119910.0,19.95838589]
[1755075788366,5.38597029,119920.0,119910.0,19.82397721]
[1755075788567,5.38597029,119920.0,119910.0,19.60425701]
[1755075788767,5.40606401,119920.0,119910.0,18.77245299]
[1755075788895,5.42930861,119920.0,119910.0,18.77245299]
[1755075789099,5.42930861,119920.0,119910.0,18.89020431]
[1755075789500,5.40606401,119920.0,119910.0,18.53607543]
[1755075789749,5.42930861,119920.0,119910.0,18.03852009]
[1755075789926,5.42930861,119920.0,119910.0,17.90411141]
[1755075790126,5.42930861,119920.0,119910.0,18.03019141]
[1755075790323,5.43330861,119920.0,119910.0,18.03019141]
[1755075790580,5.43330861,119920.0,119910.0,17.68439121]
[1755075790945,5.43330861,119920.0,119910.0,17.06075587]
[1755075791150,5.41320827,119920.0,119910.0,17.18683587]
[1755075791705,5.41320827,119920.0,119910.0,16.84103567]
[1755075791848,5.41320827,119920.0,119910.0,16.34348033]
[1755075792613,5.41320827,119920.0,119910.0,15.99768013]
[1755075792776,5.41320827,119920.0,119910.0,15.50012479]
[1755075792992,5.41319258,119920.0,119910.0,15.50012479]
[1755075793399,3.33465704,119920.0,119910.0,15.50012479]
[1755075793557,3.31141041,119920.0,119910.0,15.50012479]
[1755075795695,3.31141041,119920.0,119910.0,15.80388479]
[1755075796299,3.31141041,119920.0,119910.0,15.79555441]
[1755075796778,3.31141041,119920.0,119910.0,15.78722403]
[1755075796988,3.31141041,119920.0,119910.0,15.7728087]
[1755075797403,3.31141041,119920.0,119910.0,15.7758887]
[1755075800367,3.31133041,119920.0,119910.0,15.6498087]
[1755075800605,3.31133041,119920.0,119910.0,15.7758887]
[1755075801599,3.31133041,119920.0,119910.0,15.76447832]
[1755075802265,3.29574679,119920.0,119910.0,15.76447832]
[1755075802476,3.31132382,119920.0,119910.0,15.76447832]
[1755075802909,3.3115579,119920.0,119910.0,15.76447832]
[1755075803130,2.61863466,119920.0,119910.0,15.76447832]
[1755075803433,2.61863466,119920.0,119910.0,15.76755832]
[1755075803820,2.61863474,119920.0,119910.0,15.76755832]
[1755075804043,1.9257115,119920.0,119910.0,15.76755832]
[1755075804523,2.61863474,119920.0,119910.0,15.76755832]
[1755075804723,1.23278865,119920.0,119910.0,15.76755832]
[1755075804988,1.92571189,119920.0,119910.0,15.76447832]
[1755075805191,2.61863513,119920.0,119910.0,15.76447832]
[1755075805589,1.92571189,119920.0,119910.0,15.76755832]
[1755075806754,1.23278865,119920.0,119910.0,16.46048156]
[1755075807882,1.23278865,119920.0,119910.0,15.76755832]
[1755075808097,1.23278865,119920.0,119910.0,16.46048156]
[1755075808531,2.00820019,119920.0,119910.0,15.62185926]
[1755075808761,2.03923653,119920.0,119910.0,15.50912782]
[1755075808990,2.03923653,119920.0,119910.0,15.50079744]
[1755075809217,2.03923653,119920.0,119910.0,15.62687744]
[1755075809441,2.03923653,119920.0,119910.0,15.45264788]
[1755075809762,2.05841499,119920.0,119910.0,15.56872788]
[1755075809810,2.05841499,119920.0,119910.0,15.43431759]
[1755075810013,2.05441499,119920.0,119910.0,15.53124157]
[1755075810338,2.05441499,119920.0,119910.0,15.52291128]
[1755075810557,2.75433823,119920.0,119910.0,15.48542497]
[1755075810782,2.75433823,119920.0,119910.0,15.35934497]
[1755075810998,2.75433823,119920.0,119910.0,15.47709468]
[1755075811256,2.75433823,119920.0,119910.0,15.44793866]
[1755075811472,2.73875696,119920.0,119910.0,15.43960837]
[1755075811690,2.67184798,119920.0,119910.0,15.43127808]
[1755075811916,2.67184798,119920.0,119910.0,15.40212206]
[1755075812126,2.67184798,119920.0,119910.0,15.39379177]
[1755075812549,2.67184798,119920.0,119910.0,15.23022546]
[1755075812773,2.05591094,119920.0,119910.0,15.35630546]
[1755075812999,2.07901059,119920.0,119910.0,15.34797517]
[1755075813431,2.07901059,119920.0,119910.0,15.33964488]
[1755075813900,2.07901059,119920.0,119910.0,15.33131459]
[1755075814110,2.07901059,119920.0,119910.0,15.1969043]
[1755075814364,2.07901059,119920.0,119910.0,15.3229843]
[1755075814566,2.07901059,119920.0,119910.0,15.31465401]
[1755075814936,2.07901059,119920.0,119910.0,15.30632372]
[1755075815346,2.07901059,119920.0,119910.0,15.29799343]
[1755075815752,2.05591094,119920.0,119910.0,15.28966314]
[1755075816162,2.05591094,119920.0,119910.0,15.28133109]
[1755075816593,2.05591094,119920.0,119910.0,15.27299904]
[1755075816801,2.0559064,119920.0,119910.0,15.27299904]
[1755075817042,2.0559064,119920.0,119910.0,15.13858699]
[1755075817249,2.0559064,119920.0,119910.0,15.26466699]
[1755075817538,2.15633636,119920.0,119910.0,15.25633494]
[1755075817749,2.15633636,119920.0,119910.0,15.24800289]
[1755075818127,2.15633636,119920.0,119910.0,15.23967084]
[1755075818559,2.07385193,119920.0,119910.0,15.23133879]
[1755075818985,2.07385193,119920.0,119910.0,15.22300674]
[1755075819418,2.07385193,119920.0,119910.0,15.21467469]
[1755075819612,2.07385193,119920.0,119910.0,15.08859469]
[1755075819746,2.07385193,119920.0,119910.0,15.20634264]
[1755075820097,2.07385193,119920.0,119910.0,15.19801059]
[1755075820525,2.06601193,119920.0,119910.0,15.06359854]
[1755075820728,2.34027421,119920.0,119910.0,14.9997731]
[1755075820947,2.35045886,119920.0,119910.0,15.08970388]
[1755075821362,2.35045886,119920.0,119910.0,15.05220964]
[1755075821704,2.35045886,119920.0,119910.0,14.91779759]
[1755075821924,2.26797443,119920.0,119910.0,15.0147154]
[1755075822136,2.26797443,119920.0,119910.0,15.00638335]
[1755075822598,2.26797443,119920.0,119910.0,14.9980513]
[1755075823032,2.26797443,119920.0,119910.0,14.98971899]
[1755075823478,2.26797443,119920.0,119910.0,14.85530668]
[1755075823703,2.26797443,119920.0,119910.0,14.98138668]
[1755075823903,2.26797443,119920.0,119910.0,14.97305437]
[1755075824114,2.26796667,119920.0,119910.0,14.96472206]
[1755075824530,2.3504511,119920.0,119910.0,14.95638975]
[1755075824660,2.35479856,119920.0,119910.0,14.95638975]
[1755075824869,2.35479856,119920.0,119910.0,14.94805744]
[1755075825101,2.33155396,119920.0,119910.0,14.94805744]
[1755075825303,2.33155396,119920.0,119910.0,14.93972513]
[1755075825698,2.33155396,119920.0,119910.0,14.93139282]
[1755075826264,2.33155396,119920.0,119910.0,14.92306051]
[1755075826672,2.33155396,119920.0,119910.0,14.9147282]
[1755075827031,2.33155396,119920.0,119910.0,14.90639589]
[1755075827240,2.33155396,119920.0,119910.0,14.8772328]
[1755075827453,2.33155396,119920.0,119910.0,14.86890049]
[1755075827803,2.35479856,119920.0,119910.0,14.86056818]
[1755075828014,2.35479856,119920.0,119910.0,14.83140509]
[1755075828180,2.35479856,119920.0,119910.0,14.82307278]
[1755075828616,2.35479856,119920.0,119910.0,14.78557738]
[1755075828867,3.124708,119920.0,119910.0,14.65115223]
[1755075829064,3.124708,119920.0,119910.0,14.70317376]
[1755075829065,3.14129842,119920.0,119910.0,14.70317376]
[1755075829206,3.14713693,119920.0,119910.0,14.67400927]
[1755075829411,2.37722749,119920.0,119910.0,14.66567656]
[1755075829870,2.37722749,119920.0,119910.0,14.62817936]
[1755075830099,3.11794447,119920.0,119910.0,14.62817936]
[1755075830303,3.14713503,119920.0,119910.0,14.61057426]
[1755075830429,3.14713503,119920.0,119910.0,14.56380467]
[1755075830634,3.14713383,119920.0,119910.0,14.43772467]
[1755075830839,3.14013383,119920.0,119910.0,14.55547196]
[1755075831276,3.14013383,119920.0,119910.0,14.50638427]
[1755075831486,3.15266939,119920.0,119910.0,14.50638427]
[1755075831683,3.15266939,119920.0,119910.0,14.49805156]
[1755075831904,3.15266939,119920.0,119910.0,14.46888707]
[1755075832147,3.15266939,119920.0,119910.0,14.46055436]
[1755075832473,3.15266939,119920.0,119910.0,14.43138987]
[1755075832679,3.15266816,119920.0,119910.0,14.42305716]
[1755075832870,3.15266816,119920.0,119910.0,14.41472445]
[1755075833001,3.1441326,119920.0,119910.0,14.41472445]
[1755075833208,3.1441326,119920.0,119910.0,14.37722725]
[1755075833596,3.1441326,119920.0,119910.0,14.34489454]
[1755075833815,3.1441326,119920.0,119910.0,14.31573005]
[1755075834020,3.1441326,119920.0,119910.0,14.30739734]
[1755075834221,3.15249282,119920.0,119910.0,14.30739734]
[1755075834488,3.15249282,119920.0,119910.0,14.26990014]
[1755075834711,3.69232242,119920.0,119910.0,14.26990014]
[1755075834894,3.69232242,119920.0,119910.0,14.26156743]
[1755075835037,3.69232242,119920.0,119910.0,14.23240294]
[1755075835242,3.69232242,119920.0,119910.0,14.08964508]
[1755075835495,3.69977437,119920.0,119910.0,14.21572508]
[1755075835640,3.69977437,119920.0,119910.0,14.19739208]
[1755075835842,3.69977437,119920.0,119910.0,14.04214759]
[1755075836058,3.69977437,119920.0,119910.0,14.15989372]
[1755075836297,3.69978254,119920.0,119910.0,14.15989372]
[1755075836471,3.69978254,119920.0,119910.0,14.12239129]
[1755075836929,3.69978254,119920.0,119910.0,14.11405742]
[1755075837130,3.69978254,119920.0,119910.0,14.08488886]
[1755075837351,3.69978254,119920.0,119910.0,14.07655499]
[1755075837565,3.69978254,119920.0,119910.0,13.97263499]
[1755075837768,3.69978254,119920.0,119910.0,13.93513256]
[1755075838208,3.69978254,119920.0,119910.0,13.92679869]
[1755075838412,3.69978254,119920.0,119910.0,13.89763013]
[1755075838611,3.69978254,119920.0,119910.0,13.88929626]
[1755075838941,3.74460863,119920.0,119910.0,13.88096239]
[1755075839150,3.69978254,119920.0,119910.0,13.85179383]
[1755075839350,3.68617043,119920.0,119910.0,13.84345996]
[1755075839564,3.70759917,119920.0,119910.0,13.71737996]
[1755075839725,3.70759917,119920.0,119910.0,13.80595753]
[1755075840137,3.70759917,119920.0,119910.0,13.79762366]
[1755075840345,3.70759917,119920.0,119910.0,13.7684551]
[1755075840547,3.70759917,119920.0,119910.0,13.76012123]
[1755075840876,3.68965364,119920.0,119910.0,13.7226188]
[1755075841080,3.70760544,119920.0,119910.0,13.7226188]
[1755075841280,3.70760544,119920.0,119910.0,13.51122085]
[1755075841281,3.72254747,119920.0,119910.0,13.51122085]
[1755075841492,3.72254747,119920.0,119910.0,12.11009529]
[1755075841493,5.74589552,119920.0,119910.0,12.11009529]
[1755075841702,5.71597723,119920.0,119910.0,11.68653054]
[1755075841902,5.71597723,119920.0,119910.0,11.74195237]
[1755075842098,5.71597723,119920.0,119910.0,11.70806511]
[1755075842385,5.76084041,119920.0,119910.0,10.67292975]
[1755075842540,5.76084041,119920.0,119910.0,10.53851588]
[1755075842754,3.68319193,119920.0,119910.0,10.53851588]
[1755075842960,3.68319193,119920.0,119910.0,10.62709345]
[1755075843158,3.63632875,119920.0,119910.0,10.58990368]
[1755075843360,3.719052,119920.0,119910.0,10.58156981]
[1755075843720,3.719052,119920.0,119910.0,10.54406738]
[1755075843956,3.715052,119920.0,119910.0,10.54406738]
[1755075844170,3.750951,119920.0,119910.0,9.69237797]
[1755075844391,3.750951,119920.0,119910.0,9.66320941]
[1755075844602,3.750951,119920.0,119910.0,9.65487554]
[1755075844807,3.755951,119920.0,119910.0,9.65487554]
[1755075845016,3.755951,119920.0,119910.0,9.61737311]
[1755075845455,2.87560833,119920.0,119910.0,9.61416924]
[1755075845661,2.87560833,119920.0,119910.0,9.58500068]
[1755075845662,2.82679308,119920.0,119910.0,9.58500068]
[1755075845888,2.82679308,119920.0,119910.0,9.45058681]
[1755075845889,2.63760086,119920.0,119910.0,9.45058681]
[1755075846127,2.34237086,119920.0,119910.0,9.57666681]
[1755075846333,2.34237086,119920.0,119910.0,9.64239681]
[1755075846698,1.29593854,119920.0,119910.0,9.64023625]
[1755075846914,1.28993854,119920.0,119910.0,9.64023625]
[1755075847110,1.28993854,119920.0,119910.0,10.33345241]
[1755075847259,1.26891576,119920.0,119910.0,10.33345241]
[1755075847464,1.29391576,119920.0,119910.0,9.64023625]
[1755075847667,1.28891576,119920.0,119910.0,9.64023625]
[1755075847912,1.30636478,119920.0,119910.0,9.64023625]
[1755075848112,1.39284921,119920.0,119910.0,9.64023625]
[1755075848315,2.08206537,119920.0,119910.0,9.64023625]
[1755075848565,2.07806537,119920.0,119910.0,9.64023625]
[1755075848772,1.38684921,119920.0,119910.0,9.64023625]
[1755075849169,1.38883397,119920.0,119910.0,9.64023625]
[1755075849378,1.38883397,119920.0,119910.0,9.51415625]
[1755075849588,1.38883397,119920.0,119910.0,9.64023625]
[1755075850504,1.38883561,119920.0,119910.0,9.64023625]
[1755075850709,1.39662465,119920.0,119910.0,9.64023625]
[1755075851906,1.5634025,119920.0,119910.0,9.57450625]
[1755075852111,1.39662465,119920.0,119910.0,9.57450625]
[1755075852680,1.39662465,119920.0,119910.0,10.34425525]
[1755075853131,1.39662465,119920.0,119910.0,10.21817525]
[1755075853333,1.31414022,119920.0,119910.0,9.57450625]
[1755075853505,1.31414022,119920.0,119910.0,10.34425525]
[1755075854289,1.48091807,119920.0,119910.0,9.44842625]
[1755075854501,2.27308144,119920.0,119910.0,9.43496351]
[1755075854703,2.30381309,119920.0,119910.0,9.40579892]
[1755075854819,2.42155608,119920.0,119910.0,9.51354483]
[1755075855223,2.42155608,119920.0,119910.0,9.4760475]
[1755075855493,2.41755608,119920.0,119910.0,9.46771476]
[1755075855698,2.4588867,119920.0,119910.0,9.33275476]
[1755075855994,2.4668867,119920.0,119910.0,9.42132931]
[1755075856321,2.4668867,119920.0,119910.0,9.31791058]
[1755075856680,2.4668867,119920.0,119910.0,9.27207699]
[1755075856987,2.4668867,119920.0,119910.0,9.12920042]
[1755075857194,2.4668867,119920.0,119910.0,9.02191321]
[1755075857333,0.7316986,119890.0,119880.0,0.10396]
[1755075857546,0.40221902,119850.0,119840.0,0.769749]
[1755075857754,0.40221902,119850.0,119840.0,1.05796984]
[1755075857755,0.95051037,119850.0,119840.0,1.05796984]
[1755075857968,0.97552737,119850.0,119840.0,1.05796984]
[1755075858333,0.97552737,119850.0,119840.0,1.06106984]
[1755075858889,0.97552737,119850.0,119840.0,1.18714984]
[1755075859316,0.97552737,119850.0,119840.0,1.18814984]
[1755075859707,0.95995927,119850.0,119840.0,1.19014984]
[1755075860061,0.97552651,119850.0,119840.0,1.19014984]
[1755075860268,0.97552651,119850.0,119840.0,0.99833984]
[1755075860269,1.03678025,119850.0,119840.0,0.99833984]
[1755075860470,1.03678025,119850.0,119840.0,1.12441984]
[1755075860674,1.03678025,119850.0,119840.0,0.99833984]
[1755075860884,1.03678025,119850.0,119840.0,1.12441984]
[1755075861308,1.06232648,119850.0,119840.0,1.12441984]
[1755075861525,1.08262086,119850.0,119840.0,1.12441984]
[1755075861789,1.10586546,119850.0,119840.0,1.12441984]